[Event "*** Titled Tuesday Blitz"]
[Site "Chess.com"]
[Date "2021.03.30"]
[Round "10"]
[White "Murad_Ibrahimli"]
[Black "Sam_ChessMood"]
[Result "0-1"]
[WhiteElo "2809"]
[BlackElo "2880"]
[TimeControl "180+1"]
[EndTime "11:58:48 PDT"]
[Termination "Sam_ChessMood won by resignation"]

1. Nf3 {[%clk 0:03:00.9]} 1... d5 {[%clk 0:02:59.4]} 2. g3 {[%clk 0:03:00.1]}
2... Nf6 {[%clk 0:02:59.6]} 3. Bg2 {[%clk 0:03:00.5]} 3... g6 {[%clk 0:02:58.5]}
4. O-O {[%clk 0:03:01]} 4... Bg7 {[%clk 0:02:58.9]} 5. c4 {[%clk 0:03:01.6]}
5... c6 {[%clk 0:02:56.9]} 6. cxd5 {[%clk 0:03:01.2]} 6... cxd5 {[%clk
0:02:56.7]} 7. d4 {[%clk 0:03:01.6]} 7... O-O {[%clk 0:02:56.7]} 8. Ne5 {[%clk
0:03:02.1]} 8... b6 {[%clk 0:02:55.4]} 9. Nc3 {[%clk 0:03:01.5]} 9... Bb7 {[%clk
0:02:55.8]} 10. Qb3 {[%clk 0:02:56.9]} 10... e6 {[%clk 0:02:53.7]} 11. Bg5
{[%clk 0:02:53.5]} 11... Nc6 {[%clk 0:02:53.3]} 12. Nxc6 {[%clk 0:02:51.2]}
12... Bxc6 {[%clk 0:02:53.2]} 13. Rac1 {[%clk 0:02:51.6]} 13... Qd7 {[%clk
0:02:52.9]} 14. Rfd1 {[%clk 0:02:42.2]} 14... Rfc8 {[%clk 0:02:49.9]} 15. a4
{[%clk 0:02:40]} 15... h6 {[%clk 0:02:38]} 16. Bxf6 {[%clk 0:02:39.8]} 16...
Bxf6 {[%clk 0:02:37.9]} 17. e3 {[%clk 0:02:40.3]} 17... Bg7 {[%clk 0:02:29.3]}
18. Bf1 {[%clk 0:02:39.7]} 18... a6 {[%clk 0:02:21.7]} 19. Bd3 {[%clk
0:02:15.5]} 19... Rcb8 {[%clk 0:02:18.4]} 20. Ra1 {[%clk 0:02:11.9]} 20... Bf8
{[%clk 0:02:17]} 21. h4 {[%clk 0:02:09.8]} 21... Qd6 {[%clk 0:02:07.2]} 22. h5
{[%clk 0:02:02.4]} 22... g5 {[%clk 0:02:06.7]} 23. e4 {[%clk 0:01:56.9]} 23...
Bg7 {[%clk 0:01:50.9]} 24. exd5 {[%clk 0:01:51.7]} 24... exd5 {[%clk 0:01:48.1]}
25. Bb1 {[%clk 0:01:34.6]} 25... Re8 {[%clk 0:01:43.1]} 26. Qc2 {[%clk
0:01:34.3]} 26... Kf8 {[%clk 0:01:42.1]} 27. Qf5 {[%clk 0:01:31.5]} 27... Qe6
{[%clk 0:01:39.3]} 28. Qf3 {[%clk 0:01:25.9]} 28... Qf6 {[%clk 0:01:38.6]} 29.
Bf5 {[%clk 0:01:15.2]} 29... Rad8 {[%clk 0:01:38.2]} 30. Kg2 {[%clk 0:01:13.8]}
30... Rd6 {[%clk 0:01:30.1]} 31. b4 {[%clk 0:00:46.2]} 31... Qd8 {[%clk
0:01:24.9]} 32. b5 {[%clk 0:00:45.5]} 32... Bb7 {[%clk 0:01:25.2]} 33. bxa6
{[%clk 0:00:45.1]} 33... Bxa6 {[%clk 0:01:25.3]} 34. Bd3 {[%clk 0:00:42.9]}
34... Bc8 {[%clk 0:01:20.4]} 35. Bb5 {[%clk 0:00:25.3]} 35... Rf6 {[%clk
0:01:12.9]} 36. Qd3 {[%clk 0:00:22.7]} 36... Re7 {[%clk 0:01:02.6]} 37. Re1
{[%clk 0:00:22.6]} 37... Rfe6 {[%clk 0:00:50.7]} 38. Rxe6 {[%clk 0:00:22.5]}
38... Rxe6 {[%clk 0:00:49.8]} 39. Rc1 {[%clk 0:00:17.4]} 39... Rd6 {[%clk
0:00:43.2]} 40. Ba6 {[%clk 0:00:16.8]} 40... Bxa6 {[%clk 0:00:25.7]} 41. Qxa6
{[%clk 0:00:16.3]} 41... Rc6 {[%clk 0:00:26.2]} 42. Qb5 {[%clk 0:00:15.7]} 42...
Rc4 {[%clk 0:00:23.1]} 43. Qb3 {[%clk 0:00:10.2]} 43... Bxd4 {[%clk 0:00:22.9]}
44. Qa3+ {[%clk 0:00:07.5]} 44... Kg8 {[%clk 0:00:19.7]} 45. Nb5 {[%clk
0:00:07.4]} 45... Qf6 {[%clk 0:00:13.2]} 46. Rd1 {[%clk 0:00:06]} 46... Qxf2+
{[%clk 0:00:13]} 47. Kh3 {[%clk 0:00:05.9]} 47... Qf5+ {[%clk 0:00:13]} 48. g4
{[%clk 0:00:06]} 48... Qe4 {[%clk 0:00:08.4]} 49. Qd3 {[%clk 0:00:05.7]} 49...
Qxd3+ {[%clk 0:00:07.8]} 50. Rxd3 {[%clk 0:00:06.6]} 50... Be5 {[%clk
0:00:04.9]} 51. Rxd5 {[%clk 0:00:07.1]} 51... Bf4 {[%clk 0:00:04.9]} 52. Nd4
{[%clk 0:00:06.3]} 52... Rxa4 {[%clk 0:00:04.3]} 53. Nf5 {[%clk 0:00:06.7]}
53... Ra2 {[%clk 0:00:04.6]} 54. Rd8+ {[%clk 0:00:06.4]} 54... Kh7 {[%clk
0:00:04.8]} 0-1

[Event "*** Titled Tuesday Blitz"]
[Site "Chess.com"]
[Date "2021.03.30"]
[Round "10"]
[White "Eloist"]
[Black "MartinHollan"]
[Result "0-1"]
[WhiteElo "2351"]
[BlackElo "2475"]
[TimeControl "180+1"]
[EndTime "11:58:52 PDT"]
[Termination "MartinHollan won by resignation"]

1. e4 {[%clk 0:03:00.9]} 1... c5 {[%clk 0:03:00.1]} 2. Nf3 {[%clk 0:03:00.2]}
2... Nc6 {[%clk 0:03:00.8]} 3. Bb5 {[%clk 0:02:59.8]} 3... e6 {[%clk 0:03:00.6]}
4. Bxc6 {[%clk 0:02:59.8]} 4... bxc6 {[%clk 0:03:00.4]} 5. d3 {[%clk 0:03:00.1]}
5... f6 {[%clk 0:02:58.7]} 6. Qe2 {[%clk 0:02:59]} 6... d6 {[%clk 0:02:52.8]} 7.
Nh4 {[%clk 0:02:55.9]} 7... Ne7 {[%clk 0:02:49.2]} 8. f4 {[%clk 0:02:53.2]} 8...
g6 {[%clk 0:02:48.3]} 9. c4 {[%clk 0:02:47.7]} 9... d5 {[%clk 0:02:44.8]} 10.
Nc3 {[%clk 0:02:45.4]} 10... Bg7 {[%clk 0:02:44.2]} 11. b3 {[%clk 0:02:38.4]}
11... O-O {[%clk 0:02:35.5]} 12. O-O {[%clk 0:02:35.7]} 12... g5 {[%clk
0:02:32.4]} 13. Nf3 {[%clk 0:02:29.5]} 13... gxf4 {[%clk 0:02:24.8]} 14. Bxf4
{[%clk 0:02:17.8]} 14... e5 {[%clk 0:02:22.1]} 15. Bg3 {[%clk 0:02:10]} 15...
Ng6 {[%clk 0:02:08.7]} 16. cxd5 {[%clk 0:02:00.9]} 16... Ba6 {[%clk 0:02:07]}
17. Nd2 {[%clk 0:01:54.7]} 17... cxd5 {[%clk 0:02:01.8]} 18. Nxd5 {[%clk
0:01:52.6]} 18... Bb7 {[%clk 0:02:02]} 19. Ne3 {[%clk 0:01:47]} 19... Nf4 {[%clk
0:01:31.1]} 20. Bxf4 {[%clk 0:01:44.5]} 20... exf4 {[%clk 0:01:32]} 21. Nf5
{[%clk 0:01:42.7]} 21... Bc8 {[%clk 0:01:23.5]} 22. Nxg7 {[%clk 0:01:17.3]}
22... Kxg7 {[%clk 0:01:24.4]} 23. Rac1 {[%clk 0:01:06.8]} 23... Qd4+ {[%clk
0:01:21.2]} 24. Kh1 {[%clk 0:01:03.2]} 24... Ba6 {[%clk 0:01:17.6]} 25. Nc4
{[%clk 0:00:56.8]} 25... Rad8 {[%clk 0:01:17]} 26. Qg4+ {[%clk 0:00:46.8]} 26...
Kh8 {[%clk 0:01:15.8]} 27. Rf3 {[%clk 0:00:44.7]} 27... Bxc4 {[%clk 0:01:09.9]}
28. bxc4 {[%clk 0:00:41.7]} 28... Qb2 {[%clk 0:01:08.4]} 29. Rcf1 {[%clk
0:00:40.4]} 29... Rg8 {[%clk 0:01:03.7]} 30. Qh3 {[%clk 0:00:38.3]} 30... Qxa2
{[%clk 0:01:01.7]} 31. R3f2 {[%clk 0:00:29.2]} 31... Qa6 {[%clk 0:00:57.9]} 32.
Rxf4 {[%clk 0:00:27.5]} 32... Qd6 {[%clk 0:00:54.9]} 33. Rxf6 {[%clk 0:00:21.3]}
33... Qxd3 {[%clk 0:00:55.1]} 34. e5 {[%clk 0:00:20.3]} 34... Qxh3 {[%clk
0:00:41.2]} 35. gxh3 {[%clk 0:00:19.3]} 35... Rde8 {[%clk 0:00:41.7]} 36. e6
{[%clk 0:00:18.7]} 36... Rg6 {[%clk 0:00:39.5]} 37. Rxg6 {[%clk 0:00:14]} 37...
hxg6 {[%clk 0:00:39.5]} 38. Rf7 {[%clk 0:00:12.2]} 38... Rxe6 {[%clk 0:00:38.6]}
39. Rxa7 {[%clk 0:00:12]} 39... Re4 {[%clk 0:00:38.8]} 40. Kg2 {[%clk 0:00:07]}
40... Rxc4 {[%clk 0:00:38.7]} 41. Kf3 {[%clk 0:00:06.4]} 41... Rc2 {[%clk
0:00:35.7]} 42. Rc7 {[%clk 0:00:05.3]} 42... c4 {[%clk 0:00:24.5]} 43. Kg3
{[%clk 0:00:04.6]} 43... c3 {[%clk 0:00:24.2]} 44. h4 {[%clk 0:00:04.8]} 44...
Rc1 {[%clk 0:00:22.4]} 45. Kg4 {[%clk 0:00:04.1]} 45... c2 {[%clk 0:00:22.1]}
46. Kh3 {[%clk 0:00:03]} 46... Kg8 {[%clk 0:00:22.2]} 47. h5 {[%clk 0:00:02.7]}
47... gxh5 {[%clk 0:00:21.9]} 48. Kh4 {[%clk 0:00:03]} 48... Kf8 {[%clk
0:00:21.6]} 49. Kxh5 {[%clk 0:00:02.7]} 49... Ke8 {[%clk 0:00:22.2]} 50. h4
{[%clk 0:00:01.9]} 50... Kd8 {[%clk 0:00:22.6]} 51. Rc3 {[%clk 0:00:02.8]} 51...
Kd7 {[%clk 0:00:23.1]} 52. Kh6 {[%clk 0:00:02.4]} 52... Kd6 {[%clk 0:00:23.5]}
53. h5 {[%clk 0:00:03.3]} 53... Kd5 {[%clk 0:00:24]} 54. Kh7 {[%clk 0:00:03.4]}
54... Kd4 {[%clk 0:00:21]} 55. Rc8 {[%clk 0:00:04.3]} 55... Kd3 {[%clk
0:00:21.1]} 56. h6 {[%clk 0:00:04.6]} 56... Rh1 {[%clk 0:00:20.7]} 57. Kh8
{[%clk 0:00:03.9]} 57... Rxh6+ {[%clk 0:00:20]} 58. Kg7 {[%clk 0:00:03.9]} 58...
Rh4 {[%clk 0:00:20.5]} 59. Kg6 {[%clk 0:00:03.6]} 59... Rc4 {[%clk 0:00:20.4]}
0-1

[Event "*** Titled Tuesday Blitz"]
[Site "Chess.com"]
[Date "2021.03.30"]
[Round "10"]
[White "Srinavasan"]
[Black "GigaQuparadze"]
[Result "1-0"]
[WhiteElo "2994"]
[BlackElo "2895"]
[TimeControl "180+1"]
[EndTime "11:58:53 PDT"]
[Termination "Srinavasan won by resignation"]

1. c4 {[%clk 0:02:58.6]} 1... Nf6 {[%clk 0:02:59.7]} 2. g3 {[%clk 0:02:58.6]}
2... e6 {[%clk 0:02:59.4]} 3. Bg2 {[%clk 0:02:58.7]} 3... d5 {[%clk 0:02:59.6]}
4. Nf3 {[%clk 0:02:59.4]} 4... dxc4 {[%clk 0:02:55.1]} 5. O-O {[%clk 0:02:54.9]}
5... Be7 {[%clk 0:02:54.5]} 6. Na3 {[%clk 0:02:53.5]} 6... O-O {[%clk
0:02:51.3]} 7. Nxc4 {[%clk 0:02:52.7]} 7... c5 {[%clk 0:02:51.5]} 8. b3 {[%clk
0:02:36.6]} 8... Nc6 {[%clk 0:02:51]} 9. Bb2 {[%clk 0:02:36.5]} 9... Nd5 {[%clk
0:02:50.3]} 10. d4 {[%clk 0:02:33.8]} 10... cxd4 {[%clk 0:02:41.5]} 11. Nxd4
{[%clk 0:02:34.7]} 11... Nxd4 {[%clk 0:02:41.6]} 12. Qxd4 {[%clk 0:02:30.7]}
12... Bf6 {[%clk 0:02:41.6]} 13. Qd2 {[%clk 0:02:30.1]} 13... b5 {[%clk
0:02:21.1]} 14. Bxf6 {[%clk 0:02:04.2]} 14... Qxf6 {[%clk 0:02:22]} 15. Nd6
{[%clk 0:02:03.4]} 15... Rd8 {[%clk 0:02:12.7]} 16. Ne4 {[%clk 0:01:57.3]} 16...
Qe7 {[%clk 0:02:11]} 17. Qa5 {[%clk 0:01:56.2]} 17... a6 {[%clk 0:01:48.7]} 18.
Rac1 {[%clk 0:01:53.2]} 18... Bd7 {[%clk 0:01:42.9]} 19. Nc5 {[%clk 0:01:37.9]}
19... Be8 {[%clk 0:01:42.5]} 20. Rfd1 {[%clk 0:01:36.3]} 20... Rac8 {[%clk
0:01:27.9]} 21. b4 {[%clk 0:01:29.8]} 21... Rd6 {[%clk 0:00:49.6]} 22. e4 {[%clk
0:01:26.9]} 22... Nf6 {[%clk 0:00:41.8]} 23. e5 {[%clk 0:01:22.3]} 23... Rxd1+
{[%clk 0:00:41.4]} 24. Rxd1 {[%clk 0:01:23.2]} 24... Nd5 {[%clk 0:00:40.8]} 25.
Qxa6 {[%clk 0:01:20.9]} 25... Rd8 {[%clk 0:00:38.7]} 26. Qb7 {[%clk 0:01:01]}
26... Qxb7 {[%clk 0:00:19.2]} 27. Nxb7 {[%clk 0:01:01.9]} 27... Rb8 {[%clk
0:00:19.5]} 28. Bxd5 {[%clk 0:01:01.4]} 28... exd5 {[%clk 0:00:20.4]} 29. Na5
{[%clk 0:00:36]} 29... Rd8 {[%clk 0:00:18.6]} 30. f4 {[%clk 0:00:36.1]} 30... h5
{[%clk 0:00:17.2]} 31. Kf2 {[%clk 0:00:36]} 31... d4 {[%clk 0:00:16.8]} 32. Nb3
{[%clk 0:00:35.3]} 32... d3 {[%clk 0:00:15.2]} 33. Ke3 {[%clk 0:00:35.1]} 33...
Ra8 {[%clk 0:00:14.7]} 34. Rd2 {[%clk 0:00:32.5]} 34... Bd7 {[%clk 0:00:14.3]}
35. Kxd3 {[%clk 0:00:32.4]} 35... Be6 {[%clk 0:00:14.3]} 36. Kc3 {[%clk
0:00:31.9]} 36... Ra3 {[%clk 0:00:13.5]} 37. Kb2 {[%clk 0:00:31.6]} 37... Ra4
{[%clk 0:00:13.8]} 38. a3 {[%clk 0:00:32.1]} 38... Ra8 {[%clk 0:00:13.4]} 39.
Nc5 {[%clk 0:00:29]} 39... Bf5 {[%clk 0:00:13.6]} 40. Nb7 {[%clk 0:00:25.7]}
40... Be6 {[%clk 0:00:12.5]} 41. Nd6 {[%clk 0:00:26]} 41... Rb8 {[%clk
0:00:10.3]} 42. Rc2 {[%clk 0:00:24.7]} 42... f6 {[%clk 0:00:10.5]} 43. Rc5
{[%clk 0:00:23.6]} 43... fxe5 {[%clk 0:00:10.8]} 44. Rxb5 {[%clk 0:00:22.4]}
44... Rd8 {[%clk 0:00:10.3]} 45. fxe5 {[%clk 0:00:21.4]} 45... Rf8 {[%clk
0:00:10.5]} 46. a4 {[%clk 0:00:20.1]} 46... Rf2+ {[%clk 0:00:10.8]} 47. Kc3
{[%clk 0:00:19.6]} 47... Rf3+ {[%clk 0:00:11.1]} 48. Kd4 {[%clk 0:00:19]} 48...
Rf2 {[%clk 0:00:11.4]} 49. a5 {[%clk 0:00:18.6]} 49... Ra2 {[%clk 0:00:11.6]}
50. Ne4 {[%clk 0:00:10.7]} 50... Bf5 {[%clk 0:00:06.6]} 51. e6 {[%clk
0:00:07.5]} 51... Bxe6 {[%clk 0:00:05.3]} 52. Rb8+ {[%clk 0:00:07.4]} 52... Kf7
{[%clk 0:00:05.2]} 53. Ng5+ {[%clk 0:00:06.9]} 53... Kf6 {[%clk 0:00:05.5]} 54.
Nxe6 {[%clk 0:00:07.2]} 54... Kxe6 {[%clk 0:00:06.4]} 55. Rb6+ {[%clk
0:00:06.4]} 55... Kf5 {[%clk 0:00:06.4]} 56. a6 {[%clk 0:00:06.6]} 56... Rxh2
{[%clk 0:00:06.3]} 57. a7 {[%clk 0:00:06.8]} 57... Ra2 {[%clk 0:00:07.2]} 58.
Rb5+ {[%clk 0:00:07]} 1-0

[Event "*** Titled Tuesday Blitz"]
[Site "Chess.com"]
[Date "2021.03.30"]
[Round "10"]
[White "reniite"]
[Black "AEMEffi"]
[Result "0-1"]
[WhiteElo "2002"]
[BlackElo "2263"]
[TimeControl "180+1"]
[EndTime "11:58:53 PDT"]
[Termination "AEMEffi won on time"]

1. e4 {[%clk 0:02:56.6]} 1... d5 {[%clk 0:03:00.9]} 2. exd5 {[%clk 0:02:12.9]}
2... Qxd5 {[%clk 0:03:01.8]} 3. Nc3 {[%clk 0:02:13.3]} 3... Qd6 {[%clk
0:03:00.2]} 4. Nf3 {[%clk 0:02:07.6]} 4... Nf6 {[%clk 0:02:59.3]} 5. d4 {[%clk
0:01:58.1]} 5... Bg4 {[%clk 0:02:59.5]} 6. h3 {[%clk 0:01:57.5]} 6... Bxf3
{[%clk 0:02:59.4]} 7. Qxf3 {[%clk 0:01:57.3]} 7... c6 {[%clk 0:03:00.3]} 8. Bf4
{[%clk 0:01:53.5]} 8... Qe6+ {[%clk 0:02:47.2]} 9. Be2 {[%clk 0:01:51.7]} 9...
Nd5 {[%clk 0:02:48.1]} 10. Nxd5 {[%clk 0:01:46.6]} 10... Qxd5 {[%clk 0:02:49]}
11. Qxd5 {[%clk 0:01:41.5]} 11... cxd5 {[%clk 0:02:49.9]} 12. Bf3 {[%clk
0:01:42.4]} 12... e6 {[%clk 0:02:49.1]} 13. O-O {[%clk 0:01:42.5]} 13... Nc6
{[%clk 0:02:47.6]} 14. c3 {[%clk 0:01:40.9]} 14... O-O-O {[%clk 0:02:46.1]} 15.
Rfe1 {[%clk 0:01:41.5]} 15... Bd6 {[%clk 0:02:45.2]} 16. Bxd6 {[%clk 0:01:38.9]}
16... Rxd6 {[%clk 0:02:46.1]} 17. b4 {[%clk 0:01:37.6]} 17... h5 {[%clk
0:02:40.6]} 18. b5 {[%clk 0:01:35.1]} 18... Ne7 {[%clk 0:02:39.2]} 19. a4 {[%clk
0:01:34.2]} 19... Rd7 {[%clk 0:02:28.3]} 20. a5 {[%clk 0:01:26.4]} 20... Kb8
{[%clk 0:02:25.2]} 21. Rec1 {[%clk 0:01:16.1]} 21... g6 {[%clk 0:02:18.2]} 22.
c4 {[%clk 0:01:09.8]} 22... Nf5 {[%clk 0:02:08.8]} 23. cxd5 {[%clk 0:01:09.3]}
23... exd5 {[%clk 0:02:06.3]} 24. Rd1 {[%clk 0:01:04.4]} 24... Rc8 {[%clk
0:02:02.9]} 25. g4 {[%clk 0:00:57.8]} 25... Nh4 {[%clk 0:02:00.9]} 26. Be2
{[%clk 0:00:50]} 26... hxg4 {[%clk 0:01:59]} 27. hxg4 {[%clk 0:00:47.4]} 27...
Rc2 {[%clk 0:01:49]} 28. Kf1 {[%clk 0:00:28.5]} 28... Rd8 {[%clk 0:01:27.7]} 29.
Bd3 {[%clk 0:00:22.7]} 29... Rb2 {[%clk 0:01:22.1]} 30. Rab1 {[%clk 0:00:20.2]}
30... Ra2 {[%clk 0:01:19.3]} 31. a6 {[%clk 0:00:19.2]} 31... b6 {[%clk
0:01:19.1]} 32. Ra1 {[%clk 0:00:18.9]} 32... Rxa1 {[%clk 0:01:18]} 33. Rxa1
{[%clk 0:00:19.6]} 33... Nf3 {[%clk 0:01:18.2]} 34. Rd1 {[%clk 0:00:18.1]} 34...
Nh2+ {[%clk 0:01:12]} 35. Kg2 {[%clk 0:00:18.2]} 35... Nxg4 {[%clk 0:01:12.9]}
36. Kg3 {[%clk 0:00:18.5]} 36... Nf6 {[%clk 0:01:12.3]} 37. f4 {[%clk
0:00:18.5]} 37... Nh5+ {[%clk 0:01:09.8]} 38. Kg4 {[%clk 0:00:18.1]} 38... Re8
{[%clk 0:01:04.3]} 39. Kg5 {[%clk 0:00:12.7]} 39... Ng3 {[%clk 0:01:02.5]} 40.
Kf6 {[%clk 0:00:11.9]} 40... Rd8 {[%clk 0:00:20.5]} 41. Kxf7 {[%clk 0:00:11.9]}
41... Nh5 {[%clk 0:00:20.3]} 42. Kxg6 {[%clk 0:00:11.7]} 42... Nxf4+ {[%clk
0:00:20.9]} 43. Kf5 {[%clk 0:00:12.6]} 43... Nh5 {[%clk 0:00:19]} 44. Ke6 {[%clk
0:00:12.1]} 44... Nf4+ {[%clk 0:00:18.8]} 45. Ke7 {[%clk 0:00:12.6]} 45... Rc8
{[%clk 0:00:18.2]} 46. Bf5 {[%clk 0:00:13]} 46... Rh8 {[%clk 0:00:17.8]} 47. Rg1
{[%clk 0:00:12.4]} 47... Ne2 {[%clk 0:00:17.4]} 48. Rg5 {[%clk 0:00:11.4]} 48...
Nxd4 {[%clk 0:00:14.3]} 49. Be6 {[%clk 0:00:11.9]} 49... Nxb5 {[%clk 0:00:13.9]}
50. Bxd5 {[%clk 0:00:11.8]} 50... Nc7 {[%clk 0:00:13.9]} 51. Bb3 {[%clk
0:00:11.2]} 51... Rh7+ {[%clk 0:00:12.4]} 52. Kd6 {[%clk 0:00:11.2]} 52... Rh8
{[%clk 0:00:12.4]} 53. Rg6 {[%clk 0:00:11.4]} 53... Nxa6 {[%clk 0:00:12]} 54.
Kc6 {[%clk 0:00:11.9]} 54... Nc7 {[%clk 0:00:11.6]} 55. Rg7 {[%clk 0:00:12.3]}
55... Rc8 {[%clk 0:00:12.1]} 56. Kd7 {[%clk 0:00:12.2]} 56... Na6 {[%clk
0:00:11.2]} 57. Rg1 {[%clk 0:00:12.8]} 57... Nc5+ {[%clk 0:00:11.2]} 58. Ke7
{[%clk 0:00:12.3]} 58... Nxb3 {[%clk 0:00:11.4]} 0-1

[Event "*** Titled Tuesday Blitz"]
[Site "Chess.com"]
[Date "2021.03.30"]
[Round "10"]
[White "vugarrasulov"]
[Black "SaraciNderim"]
[Result "0-1"]
[WhiteElo "2866"]
[BlackElo "2830"]
[TimeControl "180+1"]
[EndTime "11:58:57 PDT"]
[Termination "SaraciNderim won by checkmate"]

1. e4 {[%clk 0:03:00.9]} 1... c5 {[%clk 0:02:54]} 2. Nf3 {[%clk 0:03:01]} 2...
Nc6 {[%clk 0:02:54.1]} 3. c3 {[%clk 0:03:00.4]} 3... Nf6 {[%clk 0:02:53.5]} 4.
e5 {[%clk 0:03:00.7]} 4... Nd5 {[%clk 0:02:53.6]} 5. Bc4 {[%clk 0:03:01.3]} 5...
Nb6 {[%clk 0:02:53.4]} 6. Bb3 {[%clk 0:03:01.7]} 6... c4 {[%clk 0:02:53.8]} 7.
Bc2 {[%clk 0:03:01.8]} 7... d5 {[%clk 0:02:52.8]} 8. exd6 {[%clk 0:03:00.7]}
8... e6 {[%clk 0:02:52.9]} 9. d3 {[%clk 0:02:56.2]} 9... cxd3 {[%clk 0:02:51.1]}
10. Bxd3 {[%clk 0:02:54.9]} 10... Bxd6 {[%clk 0:02:51.1]} 11. O-O {[%clk
0:02:54.7]} 11... Qc7 {[%clk 0:02:45.1]} 12. Qe2 {[%clk 0:02:53.1]} 12... Bf4
{[%clk 0:02:38.8]} 13. Nbd2 {[%clk 0:02:45.3]} 13... Ne5 {[%clk 0:02:33.4]} 14.
Bb5+ {[%clk 0:02:36.3]} 14... Bd7 {[%clk 0:02:30.1]} 15. a4 {[%clk 0:02:21.5]}
15... O-O {[%clk 0:02:25.2]} 16. a5 {[%clk 0:02:06.3]} 16... Bxb5 {[%clk
0:02:11.5]} 17. Qxb5 {[%clk 0:02:07.2]} 17... Nxf3+ {[%clk 0:02:09.4]} 18. Nxf3
{[%clk 0:02:08.1]} 18... Nd5 {[%clk 0:02:07.5]} 19. c4 {[%clk 0:02:00.7]} 19...
Nf6 {[%clk 0:01:58.7]} 20. Bxf4 {[%clk 0:01:57.8]} 20... Qxf4 {[%clk 0:01:58.5]}
21. b3 {[%clk 0:01:55]} 21... Rab8 {[%clk 0:01:57.7]} 22. Rfd1 {[%clk
0:01:48.2]} 22... Rfc8 {[%clk 0:01:50.5]} 23. Rd4 {[%clk 0:01:40.3]} 23... Qc7
{[%clk 0:01:50.1]} 24. Rad1 {[%clk 0:01:39.2]} 24... h6 {[%clk 0:01:45.8]} 25.
h3 {[%clk 0:01:39.5]} 25... Re8 {[%clk 0:01:21.7]} 26. Qe5 {[%clk 0:01:30.3]}
26... Qxe5 {[%clk 0:01:08.4]} 27. Nxe5 {[%clk 0:01:31.2]} 27... a6 {[%clk
0:01:09.2]} 28. b4 {[%clk 0:01:23.6]} 28... b6 {[%clk 0:01:05.4]} 29. b5 {[%clk
0:01:12.8]} 29... bxa5 {[%clk 0:00:51.8]} 30. bxa6 {[%clk 0:01:08.8]} 30... Ra8
{[%clk 0:00:51.5]} 31. Rd6 {[%clk 0:01:08.3]} 31... Rec8 {[%clk 0:00:46.1]} 32.
Nc6 {[%clk 0:01:03.6]} 32... Kh7 {[%clk 0:00:34.4]} 33. Nxa5 {[%clk 0:00:51.7]}
33... Ne4 {[%clk 0:00:27.8]} 34. Rb6 {[%clk 0:00:47.5]} 34... Nc5 {[%clk
0:00:27.6]} 35. Rdd6 {[%clk 0:00:46.7]} 35... Ra7 {[%clk 0:00:21.1]} 36. f3
{[%clk 0:00:16.8]} 36... Rca8 {[%clk 0:00:21]} 37. Nc6 {[%clk 0:00:12.6]} 37...
Rxa6 {[%clk 0:00:20.2]} 38. Ne5 {[%clk 0:00:13.2]} 38... R6a7 {[%clk 0:00:18]}
39. Rbc6 {[%clk 0:00:12.1]} 39... Na6 {[%clk 0:00:16]} 40. c5 {[%clk 0:00:10.6]}
40... Nb4 {[%clk 0:00:16.4]} 41. Rb6 {[%clk 0:00:10.4]} 41... Nd5 {[%clk
0:00:16.8]} 42. Rb1 {[%clk 0:00:09.9]} 42... Rc8 {[%clk 0:00:15.6]} 43. c6
{[%clk 0:00:09.3]} 43... Rac7 {[%clk 0:00:15.6]} 44. Rd7 {[%clk 0:00:09.3]}
44... f6 {[%clk 0:00:15]} 45. Ng4 {[%clk 0:00:06.2]} 45... Rxc6 {[%clk
0:00:13.1]} 46. Rbb7 {[%clk 0:00:06.8]} 46... Rg8 {[%clk 0:00:10.9]} 47. Kh2
{[%clk 0:00:05.4]} 47... h5 {[%clk 0:00:10.9]} 48. Nf2 {[%clk 0:00:05.8]} 48...
Rc2 {[%clk 0:00:10.2]} 49. Ne4 {[%clk 0:00:06.3]} 49... Kg6 {[%clk 0:00:10.5]}
50. Rd6 {[%clk 0:00:04.2]} 50... Nf4 {[%clk 0:00:09.7]} 51. Kg3 {[%clk
0:00:04.3]} 51... e5 {[%clk 0:00:09.9]} 52. Nf2 {[%clk 0:00:03.2]} 52... h4+
{[%clk 0:00:09.3]} 53. Kxh4 {[%clk 0:00:01.1]} 53... Rxf2 {[%clk 0:00:10.2]} 54.
g3 {[%clk 0:00:02]} 54... Rh8+ {[%clk 0:00:06.3]} 55. Kg4 {[%clk 0:00:02.4]}
55... Nxh3 {[%clk 0:00:04.2]} 56. Rdd7 {[%clk 0:00:02.8]} 56... f5# {[%clk
0:00:04.2]} 0-1